bitfinex/quotes_BTCUSD_20250515
["timestamp","ask_amount","ask_price","bid_price","bid_amount"]
[1747324485835,0.15006,103240.0,103230.0,1.04495254]
[1747324486255,0.15006,103240.0,103230.0,1.45425254]
[1747324487746,0.15006,103240.0,103230.0,1.45625254]
[1747324488206,0.15006,103240.0,103230.0,1.45825254]
[1747324489807,0.15006,103240.0,103230.0,2.03485254]
[1747324490054,0.15006,103240.0,103230.0,2.28485254]
[1747324492676,0.15006,103240.0,103230.0,2.99009339]
[1747324493422,0.15006,103240.0,103230.0,2.75349339]
[1747324493726,0.15006,103240.0,103230.0,2.98857339]
[1747324495346,0.15006,103240.0,103230.0,2.75349339]
[1747324495524,0.15006,103240.0,103230.0,2.98777339]
[1747324495744,0.15006,103240.0,103230.0,2.75349339]
[1747324495928,0.15006,103240.0,103230.0,2.98761339]
[1747324497371,0.15006,103240.0,103230.0,2.75349339]
[1747324497732,0.15006,103240.0,103230.0,2.50625339]
[1747324497942,0.15006,103240.0,103230.0,2.97957339]
[1747324498736,0.15006,103240.0,103230.0,2.74625339]
[1747324498928,0.15006,103240.0,103230.0,2.97913339]
[1747324499154,0.15006,103240.0,103230.0,2.74625339]
[1747324499358,0.15006,103240.0,103230.0,2.98905339]
[1747324500426,0.15006,103240.0,103230.0,2.75625339]
[1747324500627,0.15006,103240.0,103230.0,2.98873339]
[1747324501259,0.13606,103240.0,103230.0,2.98873339]
[1747324501423,0.13606,103240.0,103230.0,2.73873339]
[1747324501658,0.13606,103240.0,103230.0,2.50625339]
[1747324501880,0.13606,103240.0,103230.0,2.73817339]
[1747324502076,0.13606,103240.0,103230.0,2.50625339]
[1747324502284,0.13606,103240.0,103230.0,2.73801339]
[1747324503481,0.13606,103240.0,103230.0,2.73733339]
[1747324503682,0.000586,103260.0,103250.0,0.22275915]
[1747324503883,0.000586,103260.0,103250.0,0.98676716]
[1747324504427,0.000586,103260.0,103250.0,0.99339465]
[1747324504954,0.000586,103260.0,103250.0,0.99344263]
[1747324505154,0.000586,103260.0,103250.0,1.27254263]
[1747324505358,0.000586,103260.0,103250.0,1.24974263]
[1747324507586,0.000586,103260.0,103250.0,1.14258263]
[1747324507794,0.38276503,103260.0,103250.0,1.13282402]
[1747324507949,0.044786,103260.0,103250.0,1.12619653]
[1747324508495,0.046786,103260.0,103250.0,0.85295653]
[1747324511375,0.05646944,103260.0,103250.0,0.85295653]
[1747324511745,0.046786,103260.0,103250.0,0.55295653]
[1747324513390,0.40413239,103260.0,103250.0,0.55295653]
[1747324513599,0.40413229,103260.0,103250.0,0.55295653]
[1747324514296,0.38476503,103260.0,103250.0,0.55295653]
[1747324514484,0.046786,103260.0,103250.0,0.55295653]
[1747324514683,0.06615307,103260.0,103250.0,0.32011653]
[1747324514889,0.06615307,103260.0,103250.0,0.55295653]
[1747324515250,0.046786,103260.0,103250.0,0.55295653]
[1747324515449,0.06615298,103260.0,103250.0,0.55295653]
[1747324515799,0.4235005,103260.0,103250.0,0.55299644]
[1747324516154,0.40413239,103260.0,103250.0,0.55299644]
[1747324516355,0.4138164,103260.0,103250.0,0.55299644]
[1747324517235,0.4235005,103260.0,103250.0,0.54331187]
[1747324517596,0.08552147,103260.0,103250.0,0.55299644]
[1747324517808,0.96929177,103260.0,103250.0,0.55299663]
[1747324517967,1.2854823,103260.0,103250.0,4.798e-05]
[1747324518288,1.60310769,103260.0,103250.0,4.798e-05]
[1747324518613,1.16781926,103260.0,103250.0,4.798e-05]
[1747324518828,1.50579829,103260.0,103250.0,4.798e-05]
[1747324519043,0.82984023,103260.0,103250.0,0.20343781]
[1747324519242,0.82784023,103260.0,103250.0,0.00973321]
[1747324519464,0.93581926,103260.0,103250.0,4.798e-05]
[1747324519611,1.16781926,103260.0,103250.0,4.798e-05]
[1747324520026,1.16581926,103260.0,103250.0,4.798e-05]
[1747324520204,1.16581926,103260.0,103250.0,0.23292798]
[1747324520566,1.16881926,103260.0,103250.0,0.23292798]
[1747324520761,1.50679829,103260.0,103250.0,0.23292798]
[1747324521937,1.52133914,103260.0,103250.0,4.798e-05]
[1747324523253,1.17371601,103260.0,103250.0,4.798e-05]
[1747324523448,1.51169504,103260.0,103250.0,4.798e-05]
[1747324524876,1.17371601,103260.0,103250.0,4.798e-05]
[1747324526114,1.51169504,103260.0,103250.0,4.798e-05]
[1747324527522,0.83573698,103260.0,103250.0,4.798e-05]
[1747324527853,1.51169504,103260.0,103250.0,4.798e-05]
[1747324528839,1.17371601,103260.0,103250.0,4.798e-05]
[1747324529355,1.60900444,103260.0,103250.0,4.798e-05]
[1747324529627,1.51169504,103260.0,103250.0,4.798e-05]
[1747324531593,0.83573698,103260.0,103250.0,4.798e-05]
[1747324531909,1.51169504,103260.0,103250.0,4.798e-05]
[1747324533524,0.003586,103260.0,103250.0,0.55015653]
[1747324533696,0.01326954,103260.0,103250.0,0.57145653]
[1747324533905,0.003586,103260.0,103250.0,0.57145653]
[1747324534045,0.003586,103260.0,103250.0,0.59385653]
[1747324534244,0.000586,103260.0,103250.0,0.57145653]
[1747324534483,0.01995316,103260.0,103250.0,0.57145653]
[1747324534699,0.000586,103260.0,103250.0,0.57145653]
[1747324534883,0.01026954,103260.0,103250.0,0.57145653]
[1747324535086,0.000586,103260.0,103250.0,0.57145653]
[1747324535297,0.000586,103260.0,103250.0,0.59375653]
[1747324535614,0.01026944,103260.0,103250.0,0.59375653]
[1747324535771,0.01995307,103260.0,103250.0,0.59375653]
[1747324535982,0.02963689,103260.0,103250.0,0.57145653]
[1747324536369,0.01995307,103260.0,103250.0,0.57145653]
[1747324536590,0.02963679,103260.0,103250.0,0.57145653]
[1747324536795,0.02963679,103260.0,103250.0,0.55015653]
[1747324536965,0.01995307,103260.0,103250.0,0.55015653]
[1747324537989,0.02963679,103260.0,103250.0,0.55015653]
[1747324538594,0.0393208,103260.0,103250.0,0.55015653]
[1747324538791,0.61702412,103260.0,103250.0,0.55015653]
[1747324538908,0.59765582,103260.0,103250.0,0.32011653]
[1747324539107,0.60733973,103260.0,103250.0,0.55015653]
[1747324539549,0.8439268,103260.0,103250.0,0.4528476]
[1747324539754,0.83424308,103260.0,103250.0,0.44316265]
[1747324540012,0.83424308,103260.0,103250.0,0.4528475]
[1747324540358,1.15487516,103260.0,103250.0,0.23008798]
[1747324540592,1.15487516,103260.0,103250.0,0.44316275]
[1747324540789,1.15487516,103260.0,103250.0,0.4528476]
[1747324541527,1.15487516,103260.0,103250.0,0.46253236]
[1747324541747,0.64257792,103260.0,103250.0,0.47221702]
[1747324541964,1.18392708,103260.0,103250.0,0.47221702]
[1747324542187,1.17424336,103260.0,103250.0,0.44316285]
[1747324542403,1.17424336,103260.0,103250.0,0.45284779]
[1747324542608,1.17424336,103260.0,103250.0,0.46253264]
[1747324543180,1.17424336,103260.0,103250.0,0.4722174]
[1747324544680,0.83626433,103260.0,103250.0,0.4722174]
[1747324544891,1.17424336,103260.0,103250.0,0.47221683]
[1747324545839,1.17424336,103260.0,103250.0,0.46253217]
[1747324546079,1.17424336,103260.0,103250.0,0.45284741]
[1747324547060,1.16455935,103260.0,103250.0,0.19375258]
[1747324547303,1.50253838,103260.0,103250.0,0.43347771]
[1747324547515,1.49285419,103260.0,103250.0,0.43347781]
[1747324547720,1.4831699,103260.0,103250.0,0.23008798]
[1747324547916,1.5804793,103260.0,103250.0,0.23008798]
[1747324548342,1.4831699,103260.0,103250.0,0.23008798]
[1747324548519,1.4831699,103260.0,103250.0,4.798e-05]
[1747324549048,1.4841699,103260.0,103250.0,4.798e-05]
[1747324549262,1.4861699,103260.0,103250.0,4.798e-05]
[1747324549480,1.4861699,103260.0,103250.0,0.19375258]
[1747324549657,1.14819087,103260.0,103250.0,4.798e-05]
[1747324550086,1.4861699,103260.0,103250.0,4.798e-05]
[1747324550785,1.5834793,103260.0,103250.0,4.798e-05]
[1747324551025,1.4861699,103260.0,103250.0,4.798e-05]
[1747324551630,1.14819087,103260.0,103250.0,0.20343762]
[1747324551777,1.12689087,103260.0,103250.0,0.19375258]
[1747324552184,1.12689087,103260.0,103250.0,4.798e-05]
[1747324552419,1.14839087,103260.0,103250.0,4.798e-05]
[1747324552634,1.14839087,103260.0,103250.0,0.19375258]
[1747324552840,1.14839087,103260.0,103250.0,0.00973321]
[1747324553051,0.81041184,103260.0,103250.0,0.20343781]
[1747324553254,1.13657497,103260.0,103250.0,0.22280798]
[1747324554543,1.13657497,103260.0,103250.0,0.21312294]
[1747324554977,1.12689087,103260.0,103250.0,0.20343781]
[1747324555202,1.12689087,103260.0,103250.0,0.21312294]
[1747324556050,1.12689087,103260.0,103250.0,0.00973321]
[1747324556292,1.12689087,103260.0,103250.0,4.798e-05]
[1747324556931,0.87525087,103260.0,103250.0,0.20343771]
[1747324557144,1.10517087,103260.0,103250.0,0.20343771]
[1747324557353,1.10517087,103260.0,103250.0,0.19375258]
[1747324557807,1.4885499,103260.0,103250.0,4.798e-05]
[1747324558026,1.4885499,103260.0,103250.0,0.19375258]
[1747324558242,1.4885499,103260.0,103250.0,4.798e-05]
[1747324559837,1.60040015,103260.0,103250.0,0.23008798]
[1747324560128,1.60040015,103260.0,103250.0,4.798e-05]
[1747324560336,1.50309075,103260.0,103250.0,0.23008798]
[1747324561784,1.16511172,103260.0,103250.0,0.23008798]
[1747324561987,1.50309075,103260.0,103250.0,0.23008798]
[1747324562396,1.16511172,103260.0,103250.0,0.23008798]
[1747324562600,1.50309075,103260.0,103250.0,0.23008798]
[1747324562847,1.15057087,103260.0,103250.0,0.43347781]
[1747324563151,1.10513087,103260.0,103250.0,0.43347781]
[1747324563494,1.10513087,103260.0,103250.0,0.44316294]
[1747324563706,1.10513087,103260.0,103250.0,0.23008798]
[1747324566483,0.36295316,103260.0,103250.0,0.47434713]
[1747324566683,0.03263717,103260.0,103250.0,0.59355653]
[1747324566863,0.7203003,103260.0,103250.0,0.59355653]
[1747324567057,0.7203003,103260.0,103250.0,0.57165653]
[1747324567233,0.68924847,103260.0,103250.0,0.57165653]
[1747324567446,0.38032108,103260.0,103250.0,0.59325653]
[1747324567622,0.71730011,103260.0,103250.0,0.59325653]
[1747324567823,0.71730002,103260.0,103250.0,0.59325653]
[1747324568314,0.70761601,103260.0,103250.0,0.57165653]
[1747324568517,0.72698421,103260.0,103250.0,0.55015662]
[1747324568717,1.34428543,103260.0,103250.0,4.798e-05]
[1747324568990,1.57408543,103260.0,103250.0,0.22988798]
[1747324569319,1.58862628,103260.0,103250.0,0.22988798]
[1747324569954,1.68593568,103260.0,103250.0,4.798e-05]
[1747324570163,6.73593568,103260.0,103250.0,4.798e-05]
[1747324570789,6.73793568,103260.0,103250.0,4.798e-05]
[1747324571156,6.73593568,103260.0,103250.0,4.798e-05]
[1747324571786,6.73793568,103260.0,103250.0,4.798e-05]
[1747324572642,6.74093568,103260.0,103250.0,4.798e-05]
[1747324573205,6.74089568,103260.0,103250.0,4.798e-05]
[1747324573452,6.57449923,103260.0,103250.0,4.798e-05]
[1747324573656,1.52445923,103260.0,103250.0,4.798e-05]
[1747324574337,1.51477504,103260.0,103250.0,4.798e-05]
[1747324574928,1.28505504,103260.0,103250.0,4.798e-05]
[1747324575266,1.49227504,103260.0,103250.0,4.798e-05]
[1747324575659,1.51527504,103260.0,103250.0,4.798e-05]
[1747324576057,1.28555504,103260.0,103250.0,4.798e-05]
[1747324576392,1.61258444,103260.0,103250.0,4.798e-05]
[1747324576818,1.51527504,103260.0,103250.0,4.798e-05]
[1747324579692,1.38286444,103260.0,103250.0,4.798e-05]
[1747324579914,1.61250444,103260.0,103250.0,4.798e-05]
[1747324581488,1.38286444,103260.0,103250.0,4.798e-05]
[1747324581795,1.61250444,103260.0,103250.0,4.798e-05]
[1747324582036,1.70981384,103260.0,103250.0,4.798e-05]
[1747324582236,6.75981384,103260.0,103250.0,4.798e-05]
[1747324582433,6.76981384,103260.0,103250.0,4.798e-05]
[1747324583715,6.54017384,103260.0,103250.0,4.798e-05]
[1747324583921,6.76977384,103260.0,103250.0,4.798e-05]
[1747324593194,6.82790384,103260.0,103250.0,4.798e-05]
[1747324598678,6.82790384,103260.0,103250.0,0.34424702]
[1747324598679,0.04432146,103260.0,103250.0,0.34424702]
[1747324598905,0.78836028,103260.0,103250.0,0.21535258]
[1747324599108,1.12593917,103260.0,103250.0,0.23725258]
[1747324599307,0.36293238,103260.0,103250.0,0.26630722]
[1747324599540,0.94189601,103260.0,103250.0,0.25662265]
[1747324599832,1.15495015,103260.0,103250.0,0.24693771]
[1747324600037,1.15295015,103260.0,103250.0,0.24693771]
[1747324600237,1.15395015,103260.0,103250.0,0.24693771]
[1747324600617,1.14126671,103260.0,103250.0,0.24693771]
[1747324600949,1.57372826,103260.0,103250.0,0.02124798]
[1747324601534,1.34444826,103260.0,103250.0,0.02124798]
[1747324601747,1.57168826,103260.0,103250.0,0.02124798]
[1747324601982,1.57068826,103260.0,103250.0,0.02124798]
[1747324602161,1.57368826,103260.0,103250.0,0.02124798]
[1747324602338,1.14139983,103260.0,103250.0,0.02124798]
[1747324602545,0.8034208,103260.0,103250.0,0.02124798]
[1747324602714,1.12681898,103260.0,103250.0,0.24633771]
[1747324602919,0.55963995,103260.0,103250.0,0.23665258]
[1747324603144,1.12681898,103260.0,103250.0,0.25602294]
[1747324603346,1.11713497,103260.0,103250.0,0.24633781]
[1747324603545,1.11713497,103260.0,103250.0,0.25602294]
[1747324603741,1.11413497,103260.0,103250.0,0.24633781]
[1747324603949,1.10445087,103260.0,103250.0,0.27234798]
[1747324604154,1.10645087,103260.0,103250.0,0.27234798]
[1747324604930,1.10345087,103260.0,103250.0,0.25064798]
[1747324605381,1.10441087,103260.0,103250.0,0.25064798]
[1747324605575,1.4423899,103260.0,103250.0,0.22944798]
[1747324605902,1.10441087,103260.0,103250.0,0.22944798]
[1747324606195,1.10441087,103260.0,103250.0,0.25264798]
[1747324608473,1.10441087,103260.0,103250.0,0.22944798]
[1747324608721,1.10441087,103260.0,103250.0,0.25264798]
[1747324610731,0.76643184,103260.0,103250.0,0.25264798]
[1747324610911,1.10441087,103260.0,103250.0,0.25264798]
[1747324611312,1.10441087,103260.0,103250.0,0.22944798]
[1747324611544,1.10441087,103260.0,103250.0,0.25234798]
[1747324612962,1.10441087,103260.0,103250.0,0.25114798]
[1747324614648,1.10441087,103260.0,103250.0,0.22944798]
[1747324615274,1.55424015,103260.0,103250.0,4.798e-05]
[1747324615480,1.59854015,103260.0,103250.0,4.798e-05]
[1747324616870,6.74584955,103260.0,103250.0,4.798e-05]
[1747324617991,6.74384955,103260.0,103250.0,4.798e-05]
[1747324618323,6.74584955,103260.0,103250.0,4.798e-05]
[1747324618758,6.74784955,103260.0,103250.0,4.798e-05]
[1747324619147,6.75784955,103260.0,103250.0,4.798e-05]
[1747324620355,6.75484955,103260.0,103250.0,4.798e-05]
[1747324620560,6.75784955,103260.0,103250.0,4.798e-05]
[1747324620895,6.52868955,103260.0,103250.0,4.798e-05]
[1747324621105,6.75744955,103260.0,103250.0,4.798e-05]
[1747324621362,6.75544955,103260.0,103250.0,4.798e-05]
[1747324621556,6.75844955,103260.0,103250.0,4.798e-05]
[1747324621968,0.21309503,103240.0,103230.0,0.45714798]
[1747324622200,0.55107406,103240.0,103230.0,0.45719596]
[1747324623146,0.55107406,103240.0,103230.0,0.45819596]
[1747324623548,0.55107406,103240.0,103230.0,0.27414798]
[1747324624943,0.55107406,103240.0,103230.0,0.04474798]
[1747324625157,0.55107406,103240.0,103230.0,0.27338798]
[1747324626051,0.34766472,103240.0,103230.0,0.49619056]
[1747324626294,0.25769708,103240.0,103230.0,0.505877]
[1747324626454,0.23246651,103240.0,103230.0,0.48650402]
[1747324626657,0.78936013,103240.0,103230.0,0.49619112]
[1747324627470,0.77967444,103240.0,103230.0,0.49619112]
[1747324628120,0.77967444,103240.0,103230.0,0.50587794]
[1747324629456,0.76998846,103240.0,103230.0,0.48650421]
[1747324629894,0.92010057,103250.0,103240.0,0.23782336]
[1747324630068,0.2962898,103250.0,103240.0,0.37387629]
[1747324630265,1.17765856,103250.0,103240.0,0.35450499]
[1747324630419,0.83967953,103250.0,103240.0,0.37387685]
[1747324630805,1.17765856,103250.0,103240.0,0.38356264]
[1747324632039,1.13025856,103250.0,103240.0,0.38356264]
[1747324632245,1.13025856,103250.0,103240.0,0.38356217]
[1747324632517,0.59849427,103250.0,103240.0,0.38356161]
[1747324632747,0.37205427,103250.0,103240.0,0.38356161]
[1747324632885,0.6101794,103250.0,103240.0,0.38356161]
[1747324633420,0.6091794,103250.0,103240.0,0.38356161]
[1747324633561,0.6071794,103250.0,103240.0,0.38356161]
[1747324633987,0.800884,103250.0,103240.0,0.38356161]
[1747324634192,0.58780951,103250.0,103240.0,0.38356161]
[1747324634388,0.94515843,103250.0,103240.0,0.38356161]
[1747324634589,0.9354733,103250.0,103240.0,0.38356161]
[1747324634795,0.9354733,103250.0,103240.0,0.3835617]
[1747324635113,0.9354733,103250.0,103240.0,0.38356123]
[1747324635323,0.92578826,103250.0,103240.0,0.38356123]
[1747324635522,0.34,103250.0,103240.0,0.38356123]
[1747324635761,0.34968438,103250.0,103240.0,0.38356123]
[1747324635950,0.35936904,103250.0,103240.0,0.38356123]
[1747324636127,0.36905389,103250.0,103240.0,0.38356123]
[1747324636662,0.35936904,103250.0,103240.0,0.38356123]
[1747324636901,0.3690538,103250.0,103240.0,0.38356123]
[1747324638239,0.37873884,103250.0,103240.0,0.37387572]
[1747324638441,0.71671777,103250.0,103240.0,0.38356123]
[1747324638778,0.70703283,103250.0,103240.0,0.61220123]
[1747324639098,0.37873874,103250.0,103240.0,0.61220123]
[1747324639439,0.3690538,103250.0,103240.0,0.61220123]
[1747324639622,0.36905389,103250.0,103240.0,0.61220123]
[1747324640097,0.37873893,103250.0,103240.0,0.61220123]
[1747324640280,0.38842406,103250.0,103240.0,0.61220123]
[1747324642000,0.58212951,103250.0,103240.0,0.61220123]
[1747324642188,0.36905455,103250.0,103240.0,0.61220123]
[1747324642961,0.37873968,103250.0,103240.0,0.61220123]
[1747324643267,0.36905464,103250.0,103240.0,0.61220123]
[1747324645374,0.36905455,103250.0,103240.0,0.61220123]
[1747324646298,0.57244428,103250.0,103240.0,0.4858354]
[1747324646450,0.92010854,103250.0,103240.0,0.89192119]
[1747324646649,0.69734854,103250.0,103240.0,0.9112923]
[1747324646849,0.36905455,103250.0,103240.0,0.9330923]
[1747324647173,0.35936951,103250.0,103240.0,0.9330923]
[1747324647375,0.36905464,103250.0,103240.0,0.9330923]
[1747324647523,0.35936951,103250.0,103240.0,0.9330923]
[1747324647723,0.35936904,103250.0,103240.0,0.9330923]
[1747324648119,0.3690538,103250.0,103240.0,0.9330923]
[1747324648820,0.37873874,103250.0,103240.0,0.9330923]
[1747324649300,0.57244419,103250.0,103240.0,0.89434952]
[1747324649456,0.37873949,103250.0,103240.0,0.92340698]
[1747324649659,0.37873959,103250.0,103240.0,0.68508138]
[1747324649881,0.36905436,103250.0,103240.0,0.92336698]
[1747324650263,0.3787394,103250.0,103240.0,0.92336698]
[1747324650466,0.36905436,103250.0,103240.0,0.93305249]
[1747324650668,0.36905436,103250.0,103240.0,0.92336698]
[1747324651068,0.90073837,103250.0,103240.0,0.86978138]
[1747324651470,0.9104236,103250.0,103240.0,0.86978138]
[1747324651675,0.9104236,103250.0,103240.0,0.89278138]
[1747324651876,0.716719,103250.0,103240.0,0.90246707]
[1747324652080,0.716719,103250.0,103240.0,0.89278138]
[1747324652357,0.9104236,103250.0,103240.0,0.89278147]
[1747324653065,0.9104236,103250.0,103240.0,0.89278157]
[1747324653217,0.9104236,103250.0,103240.0,0.91215324]
[1747324653417,0.70703386,103250.0,103240.0,0.9121523]
[1747324653621,0.70703386,103250.0,103240.0,0.89278101]
[1747324654145,0.70703386,103250.0,103240.0,0.90230674]
[1747324654303,0.71671909,103250.0,103240.0,0.89262105]
[1747324654504,0.36905483,103250.0,103240.0,0.90230674]
[1747324654713,0.37874006,103250.0,103240.0,0.48390674]
[1747324654911,0.57244466,103250.0,103240.0,0.45484938]
[1747324655123,0.90073893,103250.0,103240.0,0.44153544]
[1747324655330,0.90073893,103250.0,103240.0,0.45122142]
[1747324655625,0.78443697,103250.0,103240.0,0.45122142]
[1747324656855,0.78443697,103250.0,103240.0,0.46090721]
[1747324657265,0.78443697,103250.0,103240.0,0.45122142]
[1747324657470,0.78443697,103250.0,103240.0,0.46090721]
[1747324657707,0.34,103250.0,103240.0,0.61210212]
[1747324662402,0.34,103250.0,103240.0,1.03046212]
[1747324666331,0.67769832,103250.0,103240.0,0.62160956]
[1747324666527,0.71846774,103250.0,103240.0,0.86862142]
[1747324666732,0.73976774,103250.0,103240.0,0.65066711]
[1747324666892,0.68738289,103250.0,103240.0,0.88799206]
[1747324667115,0.35936933,103250.0,103240.0,0.86862077]
[1747324667315,0.3787395,103250.0,103240.0,0.88972095]
[1747324667517,0.3787395,103250.0,103240.0,0.89940655]
[1747324668331,0.37873931,103250.0,103240.0,0.90909206]
[1747324668542,0.38842454,103250.0,103240.0,0.89940655]
[1747324669809,0.38842444,103250.0,103240.0,0.89940655]
[1747324670249,0.38842444,103250.0,103240.0,0.87830655]
[1747324670831,0.38842444,103250.0,103240.0,0.88799206]
[1747324671246,0.38842444,103250.0,103240.0,0.90929206]
[1747324671449,0.38842444,103250.0,103240.0,0.87830655]
[1747324671653,0.3884251,103250.0,103240.0,0.87830655]
[1747324673074,0.3884251,103250.0,103240.0,0.88799206]
[1747324673939,0.37873987,103250.0,103240.0,0.88799206]
[1747324674527,0.37873987,103250.0,103240.0,0.87830655]
[1747324674742,0.57244447,103250.0,103240.0,0.87830655]
[1747324674940,0.5821297,103250.0,103240.0,0.87830655]
[1747324676164,0.93334326,103250.0,103240.0,0.86862095]
[1747324677403,0.93334326,103250.0,103240.0,0.87830655]
[1747324677613,0.59564494,103250.0,103240.0,0.87830655]
[1747324679715,0.59564494,103250.0,103240.0,0.86862095]
[1747324680290,0.59564494,103250.0,103240.0,0.45026095]
[1747324680847,0.58596,103250.0,103240.0,0.43088947]
[1747324680984,0.58596,103250.0,103240.0,0.44057545]
[1747324681165,0.58596,103250.0,103240.0,0.43927671]
[1747324681370,0.56276,103250.0,103240.0,0.45864828]
[1747324681772,0.78442448,103250.0,103240.0,0.45864828]
[1747324682033,0.56276,103250.0,103240.0,0.45864828]
[1747324682271,0.34968504,103250.0,103240.0,0.45864828]
[1747324682464,0.5530744,103250.0,103240.0,0.45864828]
[1747324683171,0.82063888,103250.0,103240.0,0.45864828]
[1747324683714,0.82063888,103250.0,103240.0,0.44896259]
[1747324683919,0.82063888,103250.0,103240.0,0.45864838]
[1747324684532,0.82063888,103250.0,103240.0,0.46833407]
[1747324686862,0.82063888,103250.0,103240.0,0.43927671]
[1747324687262,0.82063888,103250.0,103240.0,0.44896259]
[1747324688531,0.82063888,103250.0,103240.0,0.43927671]
[1747324689168,0.82063888,103250.0,103230.0,0.66251008]
[1747324689169,0.02905727,103240.0,103230.0,0.66251008]
[1747324689444,0.44686722,103240.0,103230.0,0.84823711]
[1747324689583,0.44444558,103240.0,103230.0,0.86761075]
[1747324689794,0.82005989,103240.0,103230.0,0.64484798]
[1747324690651,1.04172437,103240.0,103230.0,0.41840798]
[1747324690826,1.04172437,103240.0,103230.0,0.64484798]
[1747324691031,1.04172437,103240.0,103230.0,0.64684798]
[1747324691574,1.04172437,103240.0,103230.0,0.64324798]
[1747324691794,0.82005989,103240.0,103230.0,0.64324798]
[1747324692195,0.82005989,103240.0,103230.0,0.64124798]
[1747324692411,0.55309541,103240.0,103230.0,0.86607711]
[1747324692595,0.55309541,103240.0,103230.0,0.8563901]
[1747324692798,0.58217241,103240.0,103230.0,0.87576402]
[1747324693292,0.79415091,103240.0,103230.0,0.87576402]
[1747324693489,0.57248643,103240.0,103230.0,0.87576402]
[1747324693720,0.57248643,103240.0,103230.0,0.86607711]
[1747324693910,0.57248643,103240.0,103230.0,0.87576402]
[1747324694455,0.38844886,103240.0,103230.0,1.00506005]
[1747324694660,0.01936951,103250.0,103240.0,0.24478072]
[1747324694868,0.22275858,103250.0,103240.0,0.27676651]
[1747324695071,0.45410829,103250.0,103240.0,0.2350954]
[1747324695253,0.76505412,103250.0,103240.0,0.42984952]
[1747324695483,0.76505412,103250.0,103240.0,0.21309559]
[1747324695699,0.76505412,103250.0,103240.0,0.44922157]
[1747324695918,0.54338964,103250.0,103240.0,0.45890745]
[1747324696129,0.36905503,103250.0,103240.0,0.46859314]
[1747324696299,0.78442411,103250.0,103240.0,0.49069314]
[1747324696495,0.79410924,103250.0,103240.0,0.49069258]
[1747324696724,0.57244476,103250.0,103240.0,0.49069258]
[1747324696921,0.79410924,103250.0,103240.0,0.49069258]
[1747324697125,0.78442448,103250.0,103240.0,0.48100698]
[1747324697527,0.90052581,103250.0,103240.0,0.48100698]
[1747324697969,0.90052581,103250.0,103240.0,0.45890698]
[1747324698633,0.89084077,103250.0,103240.0,0.44922129]
[1747324698833,0.89084077,103250.0,103240.0,0.45890708]
[1747324701139,0.91374077,103250.0,103240.0,0.45890708]
[1747324701528,0.89084077,103250.0,103240.0,0.45890708]
[1747324702033,0.89084077,103250.0,103240.0,0.46859277]
[1747324702577,0.89084077,103250.0,103240.0,0.45890708]
[1747324702780,0.89084077,103250.0,103240.0,0.43953541]
[1747324702899,0.89084077,103250.0,103240.0,0.44922129]
[1747324703153,0.89084077,103250.0,103240.0,0.45890698]
[1747324704575,0.89084077,103250.0,103240.0,0.45890708]
[1747324705029,0.89084077,103250.0,103240.0,0.44922129]
[1747324705760,0.88115564,103250.0,103240.0,0.44922129]
[1747324706669,0.90295564,103250.0,103240.0,0.44922129]
[1747324707272,0.90295564,103250.0,103240.0,0.45890708]
[1747324707801,0.36905746,103240.0,103230.0,0.63561008]
[1747324707984,0.70682327,103240.0,103230.0,0.86205008]
[1747324708530,0.70682327,103240.0,103230.0,0.84267701]
[1747324708735,0.70682327,103240.0,103230.0,0.8426772]
[1747324708736,0.94514719,103240.0,103230.0,0.8426772]
[1747324708938,0.92254719,103240.0,103230.0,0.85436421]
[1747324709146,0.5752056,103240.0,103230.0,0.88342429]
[1747324709376,0.5945768,103240.0,103230.0,1.02633369]
[1747324709581,0.5945768,103240.0,103230.0,0.79989369]
[1747324709740,0.60426278,103240.0,103230.0,1.02633369]
[1747324710310,0.2545768,103240.0,103230.0,1.02633369]
[1747324710498,0.23520532,103240.0,103230.0,1.02633369]
[1747324710735,0.25457662,103240.0,103230.0,1.02633369]
[1747324710934,0.25457662,103240.0,103230.0,0.79989369]
[1747324711135,0.25457662,103240.0,103230.0,1.02633369]
[1747324712666,0.25457652,103240.0,103230.0,1.02633369]
[1747324712871,0.4104468,103250.0,103240.0,0.21309522]
[1747324713068,0.78815963,103250.0,103240.0,0.21309522]
[1747324713273,0.78815963,103250.0,103240.0,0.22278091]
[1747324714652,0.34968438,103250.0,103240.0,0.25356642]
[1747324714936,0.13010772,103260.0,103250.0,0.22275915]
[1747324715136,0.49915908,103260.0,103250.0,0.24385915]
[1747324715570,0.47979116,103260.0,103250.0,0.24385915]
[1747324715772,0.48947517,103260.0,103250.0,0.24385915]
[1747324715985,0.47979116,103260.0,103250.0,0.34116855]
[1747324716274,0.49247517,103260.0,103250.0,0.34116855]
[1747324716580,0.48279116,103260.0,103250.0,0.34116855]
[1747324716990,0.48279107,103260.0,103250.0,0.34116855]
[1747324717169,0.49247498,103260.0,103250.0,0.34116855]
[1747324717500,0.49247489,103260.0,103250.0,0.34116855]
[1747324717709,0.123424,103260.0,103250.0,0.36366855]
[1747324718163,0.123424,103260.0,103250.0,0.37030465]
[1747324718540,0.120424,103260.0,103250.0,0.37030465]
[1747324718761,0.120424,103260.0,103250.0,0.37230465]
[1747324718968,0.120424,103260.0,103250.0,0.37430465]
[1747324719993,0.120424,103260.0,103250.0,0.3888455]
[1747324722501,0.120424,103260.0,103250.0,0.38882827]
[1747324723174,0.120424,103260.0,103250.0,0.72882827]
[1747324723352,0.119824,103260.0,103250.0,0.73882827]
[1747324723530,0.119824,103260.0,103250.0,0.72882827]
[1747324723855,0.119824,103260.0,103250.0,0.96386827]
[1747324724079,0.119824,103260.0,103250.0,0.96186827]
[1747324724258,0.119824,103260.0,103250.0,0.94986827]
[1747324724515,0.119824,103260.0,103250.0,0.95986827]
[1747324724726,0.119824,103260.0,103250.0,1.18002827]
[1747324724938,0.119824,103260.0,103250.0,1.17502827]
[1747324725151,0.119824,103260.0,103250.0,1.18002827]
[1747324725361,0.119824,103260.0,103250.0,1.18502827]
[1747324726255,0.119824,103260.0,103250.0,1.19502827]
[1747324727112,0.119824,103260.0,103250.0,1.49502827]
[1747324727555,0.119824,103260.0,103250.0,1.26998827]
[1747324727767,0.119824,103260.0,103250.0,1.49494827]
[1747324728213,0.119824,103260.0,103250.0,1.26998827]
[1747324728453,0.119824,103260.0,103250.0,1.49490827]
[1747324728681,0.119824,103260.0,103250.0,1.25998827]
[1747324728892,0.119824,103260.0,103250.0,1.03482827]
[1747324729108,0.119824,103260.0,103250.0,1.25994827]
[1747324729559,0.119824,103260.0,103250.0,0.65778742]
[1747324729784,0.119824,103260.0,103250.0,0.85518855]
[1747324729968,0.14887546,103260.0,103250.0,0.63006855]
[1747324730217,0.14887527,103260.0,103250.0,0.85518855]
[1747324730425,0.12950754,103260.0,103250.0,0.85518855]
[1747324730639,0.12950754,103260.0,103250.0,0.55518855]
[1747324730845,0.12950754,103260.0,103250.0,0.54518855]
[1747324731018,0.12950754,103260.0,103250.0,0.54918855]
[1747324731254,0.12950744,103260.0,103250.0,0.54918855]
[1747324731468,0.119824,103260.0,103250.0,0.54618855]
[1747324731888,0.50112438,103260.0,103250.0,0.31238398]
[1747324732097,0.119824,103260.0,103250.0,0.54718855]